[Event "Early-Titled-Tuesday-Blitz-September-26-2023"]
[Site "Chess.com"]
[Date "2023.09.26"]
[Round "1"]
[White "Arifarsky"]
[Black "AsaHoffmann"]
[Result "1-0"]
[WhiteElo "2727"]
[BlackElo "2428"]
[TimeControl "180+1"]
[EndTime "8:06:37 PDT"]
[Termination "Arifarsky won by resignation"]

1. d4 {[%clk 0:02:56.8]} 1... Nf6 {[%clk 0:02:55.5]} 2. c4 {[%clk 0:02:56.8]}
2... c5 {[%clk 0:02:55]} 3. e3 {[%clk 0:02:55.9]} 3... g6 {[%clk 0:02:53.8]} 4.
Nf3 {[%clk 0:02:56.2]} 4... Bg7 {[%clk 0:02:53.7]} 5. Be2 {[%clk 0:02:56.5]}
5... O-O {[%clk 0:02:53.5]} 6. O-O {[%clk 0:02:56.8]} 6... d6 {[%clk 0:02:53.4]}
7. Nc3 {[%clk 0:02:56.7]} 7... e6 {[%clk 0:02:52.9]} 8. b3 {[%clk 0:02:57]} 8...
a6 {[%clk 0:02:52.4]} 9. Bb2 {[%clk 0:02:57.3]} 9... Qc7 {[%clk 0:02:52.1]} 10.
Rc1 {[%clk 0:02:56.5]} 10... b6 {[%clk 0:02:51.9]} 11. Qd2 {[%clk 0:02:48.5]}
11... Bb7 {[%clk 0:02:51.7]} 12. Rfd1 {[%clk 0:02:49.3]} 12... Nbd7 {[%clk
0:02:47.5]} 13. h3 {[%clk 0:02:45.9]} 13... Rad8 {[%clk 0:02:47.1]} 14. a3
{[%clk 0:02:45.3]} 14... Rfe8 {[%clk 0:02:41.6]} 15. b4 {[%clk 0:02:44.7]} 15...
Qb8 {[%clk 0:02:38.2]} 16. Qc2 {[%clk 0:02:35.3]} 16... Qa8 {[%clk 0:02:37.4]}
17. Qb3 {[%clk 0:02:28.1]} 17... Ne4 {[%clk 0:02:29.3]} 18. Nxe4 {[%clk
0:02:24.5]} 18... Bxe4 {[%clk 0:02:28.7]} 19. dxc5 {[%clk 0:02:24.9]} 19... dxc5
{[%clk 0:02:25.2]} 20. Bxg7 {[%clk 0:02:23.6]} 20... Kxg7 {[%clk 0:02:23.3]} 21.
Qb2+ {[%clk 0:02:22.9]} 21... Kg8 {[%clk 0:02:22.9]} 22. Rd2 {[%clk 0:02:18.4]}
22... Nf8 {[%clk 0:02:02.5]} 23. Rcd1 {[%clk 0:01:55]} 23... Rxd2 {[%clk
0:01:59.9]} 24. Qxd2 {[%clk 0:01:55.9]} 24... Bxf3 {[%clk 0:01:52]} 25. Bxf3
{[%clk 0:01:45.3]} 25... Qc8 {[%clk 0:01:47.8]} 26. b5 {[%clk 0:01:36.4]} 26...
axb5 {[%clk 0:01:43.9]} 27. cxb5 {[%clk 0:01:37.3]} 27... c4 {[%clk 0:01:36.8]}
28. Qd4 {[%clk 0:01:33.2]} 28... e5 {[%clk 0:01:28.3]} 29. Qxb6 {[%clk
0:01:32.7]} 29... e4 {[%clk 0:01:24.2]} 30. Be2 {[%clk 0:01:30]} 30... c3 {[%clk
0:01:24.2]} 31. Rc1 {[%clk 0:01:24]} 31... Re6 {[%clk 0:01:18.3]} 32. Qd4 {[%clk
0:01:22.5]} 32... c2 {[%clk 0:01:16.7]} 33. Qb2 {[%clk 0:01:19]} 33... Rb6
{[%clk 0:00:58.3]} 34. Rxc2 {[%clk 0:01:18.5]} 34... Qe6 {[%clk 0:00:54.5]} 35.
a4 {[%clk 0:01:18.8]} 35... Nd7 {[%clk 0:00:53.4]} 36. a5 {[%clk 0:01:18.7]}
36... Rd6 {[%clk 0:00:52.4]} 37. b6 {[%clk 0:01:18.8]} 37... Nxb6 {[%clk
0:00:52.2]} 38. axb6 {[%clk 0:01:17.4]} 38... Rxb6 {[%clk 0:00:52.1]} 39. Rc8+
{[%clk 0:01:04.5]} 39... Qxc8 {[%clk 0:00:48]} 40. Qxb6 {[%clk 0:01:05]} 40...
Qc1+ {[%clk 0:00:46.8]} 41. Bf1 {[%clk 0:01:04.6]} 41... Qc2 {[%clk 0:00:45.1]}
42. g4 {[%clk 0:00:59.8]} 42... h6 {[%clk 0:00:44.1]} 43. Qf6 {[%clk 0:00:57.2]}
43... Qb1 {[%clk 0:00:41.6]} 44. Kg2 {[%clk 0:00:55.7]} 44... Qc2 {[%clk
0:00:40.7]} 45. Qd4 {[%clk 0:00:53.3]} 45... Qb1 {[%clk 0:00:37.3]} 46. Bc4
{[%clk 0:00:53.1]} 46... Qb7 {[%clk 0:00:33.7]} 47. Qf6 {[%clk 0:00:51.8]} 1-0

[Event "Early-Titled-Tuesday-Blitz-September-26-2023"]
[Site "Chess.com"]
[Date "2023.09.26"]
[Round "1"]
[White "itsdsyr"]
[Black "SharapovEvgeny"]
[Result "0-1"]
[WhiteElo "2292"]
[BlackElo "2613"]
[TimeControl "180+1"]
[EndTime "8:06:37 PDT"]
[Termination "SharapovEvgeny won by resignation"]

1. d4 {[%clk 0:02:54.9]} 1... Nf6 {[%clk 0:02:58.7]} 2. c4 {[%clk 0:02:54.4]}
2... e6 {[%clk 0:02:58.9]} 3. Nf3 {[%clk 0:02:54.3]} 3... Bb4+ {[%clk
0:02:58.7]} 4. Bd2 {[%clk 0:02:53.2]} 4... c5 {[%clk 0:02:58.7]} 5. e3 {[%clk
0:02:43]} 5... O-O {[%clk 0:02:57.4]} 6. Bd3 {[%clk 0:02:41.4]} 6... Bxd2+
{[%clk 0:02:55.8]} 7. Nbxd2 {[%clk 0:02:41.5]} 7... b6 {[%clk 0:02:55.5]} 8. O-O
{[%clk 0:02:38.8]} 8... Bb7 {[%clk 0:02:55.5]} 9. Re1 {[%clk 0:02:24.6]} 9... d6
{[%clk 0:02:55.2]} 10. e4 {[%clk 0:02:21.6]} 10... cxd4 {[%clk 0:02:54.8]} 11.
Nxd4 {[%clk 0:02:20.8]} 11... Nc6 {[%clk 0:02:55.1]} 12. Nxc6 {[%clk 0:02:18.2]}
12... Bxc6 {[%clk 0:02:55.2]} 13. Nf3 {[%clk 0:02:18.9]} 13... Qe7 {[%clk
0:02:54.7]} 14. Nd4 {[%clk 0:02:18.5]} 14... Bb7 {[%clk 0:02:54.7]} 15. Rc1
{[%clk 0:02:13.4]} 15... Rfd8 {[%clk 0:02:54.1]} 16. Bb1 {[%clk 0:02:13.1]}
16... a6 {[%clk 0:02:54]} 17. Qb3 {[%clk 0:02:06]} 17... Qc7 {[%clk 0:02:53.6]}
18. Qg3 {[%clk 0:02:00.5]} 18... Qc5 {[%clk 0:02:49.9]} 19. Nb3 {[%clk
0:01:56.4]} 19... Qe5 {[%clk 0:02:43.9]} 20. f4 {[%clk 0:01:39]} 20... Qh5
{[%clk 0:02:41.7]} 21. e5 {[%clk 0:01:35.4]} 21... dxe5 {[%clk 0:02:41.6]} 22.
fxe5 {[%clk 0:01:33]} 22... Nd7 {[%clk 0:02:38.1]} 23. Rcd1 {[%clk 0:01:25.4]}
23... Nc5 {[%clk 0:02:37.4]} 24. Rd6 {[%clk 0:01:17.2]} 24... Rxd6 {[%clk
0:02:35.5]} 25. exd6 {[%clk 0:01:18.1]} 25... Nxb3 {[%clk 0:02:34.7]} 26. axb3
{[%clk 0:01:17.3]} 26... Rd8 {[%clk 0:02:34.6]} 27. b4 {[%clk 0:01:15.1]} 27...
a5 {[%clk 0:02:29.7]} 28. Qe3 {[%clk 0:01:09.5]} 28... Rxd6 {[%clk 0:02:23.3]}
29. c5 {[%clk 0:00:58.5]} 29... bxc5 {[%clk 0:02:20.1]} 30. bxc5 {[%clk
0:00:59.4]} 30... Rd1 {[%clk 0:02:17.2]} 31. Kf2 {[%clk 0:00:27]} 31... Rxe1
{[%clk 0:02:15]} 32. Kxe1 {[%clk 0:00:26.6]} 32... Qd5 {[%clk 0:02:11.5]} 33.
Qc3 {[%clk 0:00:22]} 33... g6 {[%clk 0:02:08]} 34. b4 {[%clk 0:00:16.8]} 34...
axb4 {[%clk 0:02:07.7]} 35. Qxb4 {[%clk 0:00:17.7]} 35... Qxg2 {[%clk
0:02:05.9]} 36. Qb6 {[%clk 0:00:14.8]} 36... Qg1+ {[%clk 0:02:01.7]} 37. Kd2
{[%clk 0:00:14.2]} 37... Qxh2+ {[%clk 0:02:01.6]} 38. Kc3 {[%clk 0:00:14.5]}
38... Qg3+ {[%clk 0:01:59]} 39. Kb4 {[%clk 0:00:13.8]} 39... Qg2 {[%clk
0:01:55.2]} 40. Bd3 {[%clk 0:00:12.6]} 40... h5 {[%clk 0:01:44.1]} 41. Bb5
{[%clk 0:00:08.1]} 41... h4 {[%clk 0:01:41.6]} 42. Qd8+ {[%clk 0:00:07.3]} 42...
Kg7 {[%clk 0:01:40.3]} 43. Qxh4 {[%clk 0:00:07.4]} 43... Qe4+ {[%clk 0:01:37.7]}
44. Qxe4 {[%clk 0:00:06.9]} 44... Bxe4 {[%clk 0:01:37.9]} 45. Ka5 {[%clk
0:00:06.2]} 45... g5 {[%clk 0:01:36.7]} 46. Kb6 {[%clk 0:00:07.1]} 46... g4
{[%clk 0:01:36.7]} 47. Bc6 {[%clk 0:00:08]} 47... Bxc6 {[%clk 0:01:36.7]} 48.
Kxc6 {[%clk 0:00:07.9]} 48... g3 {[%clk 0:01:37.4]} 49. Kd7 {[%clk 0:00:08.8]}
49... g2 {[%clk 0:01:38.1]} 50. c6 {[%clk 0:00:09.7]} 50... g1=Q {[%clk
0:01:38.6]} 51. c7 {[%clk 0:00:10.6]} 51... Qa7 {[%clk 0:01:38.3]} 0-1

[Event "Early-Titled-Tuesday-Blitz-September-26-2023"]
[Site "Chess.com"]
[Date "2023.09.26"]
[Round "1"]
[White "blitzo_vich"]
[Black "PedroGil25"]
[Result "1-0"]
[WhiteElo "2621"]
[BlackElo "2318"]
[TimeControl "180+1"]
[EndTime "8:06:39 PDT"]
[Termination "blitzo_vich won by checkmate"]

1. b3 {[%clk 0:03:00.2]} 1... c5 {[%clk 0:02:59]} 2. Bb2 {[%clk 0:02:59.9]} 2...
Nc6 {[%clk 0:02:59.2]} 3. f4 {[%clk 0:02:59.5]} 3... d5 {[%clk 0:02:58.3]} 4.
Nf3 {[%clk 0:02:59.5]} 4... Nf6 {[%clk 0:02:53.1]} 5. e3 {[%clk 0:02:59.8]} 5...
a6 {[%clk 0:02:51.1]} 6. Be2 {[%clk 0:02:58.8]} 6... e6 {[%clk 0:02:46.6]} 7.
O-O {[%clk 0:02:58.7]} 7... Be7 {[%clk 0:02:46.8]} 8. h3 {[%clk 0:02:57.6]} 8...
O-O {[%clk 0:02:47.5]} 9. d3 {[%clk 0:02:57.7]} 9... b5 {[%clk 0:02:47.4]} 10.
a4 {[%clk 0:02:56.8]} 10... Bb7 {[%clk 0:02:47.4]} 11. Nbd2 {[%clk 0:02:56.6]}
11... Qb6 {[%clk 0:02:45.8]} 12. Kh2 {[%clk 0:02:40.5]} 12... Rfd8 {[%clk
0:02:36.9]} 13. Ne5 {[%clk 0:02:38.1]} 13... Nxe5 {[%clk 0:02:30]} 14. Bxe5
{[%clk 0:02:36.4]} 14... d4 {[%clk 0:02:30]} 15. a5 {[%clk 0:02:18.8]} 15... Qa7
{[%clk 0:02:00.4]} 16. Bxf6 {[%clk 0:01:53.5]} 16... Bxf6 {[%clk 0:01:58.7]} 17.
e4 {[%clk 0:01:52.7]} 17... Qb8 {[%clk 0:01:56.3]} 18. e5 {[%clk 0:01:47.5]}
18... Be7 {[%clk 0:01:56]} 19. Bf3 {[%clk 0:01:47.4]} 19... Qc7 {[%clk
0:01:54.2]} 20. Bxb7 {[%clk 0:01:44]} 20... Qxb7 {[%clk 0:01:53.5]} 21. Qg4
{[%clk 0:01:42.2]} 21... Rac8 {[%clk 0:01:48.9]} 22. f5 {[%clk 0:01:36.9]} 22...
exf5 {[%clk 0:01:47]} 23. Rxf5 {[%clk 0:01:35.1]} 23... g6 {[%clk 0:01:38.9]}
24. Rf2 {[%clk 0:01:28.6]} 24... Qd5 {[%clk 0:01:38.1]} 25. Qf4 {[%clk
0:01:16.5]} 25... Qe6 {[%clk 0:01:23.3]} 26. Raf1 {[%clk 0:01:12.9]} 26... Rf8
{[%clk 0:01:15.2]} 27. Ne4 {[%clk 0:01:08.7]} 27... c4 {[%clk 0:01:08.6]} 28.
bxc4 {[%clk 0:01:08.2]} 28... bxc4 {[%clk 0:01:09.5]} 29. Nf6+ {[%clk
0:01:08.3]} 29... Kg7 {[%clk 0:01:09.7]} 30. Ng4 {[%clk 0:00:56.8]} 30... cxd3
{[%clk 0:00:59.9]} 31. cxd3 {[%clk 0:00:50.3]} 31... Rc5 {[%clk 0:00:48.3]} 32.
Qh6+ {[%clk 0:00:25.5]} 32... Kh8 {[%clk 0:00:40.1]} 33. Nf6 {[%clk 0:00:16.8]}
33... Qxe5+ {[%clk 0:00:40]} 34. g3 {[%clk 0:00:15.5]} 34... Bxf6 {[%clk
0:00:38.8]} 35. Qxf8# {[%clk 0:00:13.6]} 1-0

[Event "Early-Titled-Tuesday-Blitz-September-26-2023"]
[Site "Chess.com"]
[Date "2023.09.26"]
[Round "1"]
[White "m_ezat"]
[Black "Chesstar"]
[Result "1-0"]
[WhiteElo "2541"]
[BlackElo "2072"]
[TimeControl "180+1"]
[EndTime "8:06:48 PDT"]
[Termination "m_ezat won by resignation"]

1. d4 {[%clk 0:02:52]} 1... Nf6 {[%clk 0:02:59.2]} 2. c4 {[%clk 0:02:50.9]} 2...
e6 {[%clk 0:02:56.3]} 3. Nc3 {[%clk 0:02:48.7]} 3... Bb4 {[%clk 0:02:55.4]} 4.
e3 {[%clk 0:02:44.9]} 4... O-O {[%clk 0:02:52.2]} 5. a3 {[%clk 0:02:43.6]} 5...
Bxc3+ {[%clk 0:02:52]} 6. bxc3 {[%clk 0:02:42.6]} 6... b6 {[%clk 0:02:52.9]} 7.
Bd3 {[%clk 0:02:42.7]} 7... Bb7 {[%clk 0:02:49.9]} 8. f3 {[%clk 0:02:41.8]} 8...
d5 {[%clk 0:02:47.5]} 9. cxd5 {[%clk 0:02:34.5]} 9... exd5 {[%clk 0:02:38.9]}
10. Ne2 {[%clk 0:02:32.1]} 10... Ba6 {[%clk 0:02:36.4]} 11. Bxa6 {[%clk
0:02:31]} 11... Nxa6 {[%clk 0:02:30.6]} 12. O-O {[%clk 0:02:30.7]} 12... Qe7
{[%clk 0:02:25]} 13. Ng3 {[%clk 0:02:29.6]} 13... Rfe8 {[%clk 0:02:19.1]} 14.
Qd3 {[%clk 0:02:26.8]} 14... Nb8 {[%clk 0:02:15.5]} 15. Ra2 {[%clk 0:02:26.4]}
15... Nbd7 {[%clk 0:02:09.9]} 16. Raf2 {[%clk 0:02:18.8]} 16... c5 {[%clk
0:01:57.4]} 17. e4 {[%clk 0:02:17.9]} 17... dxe4 {[%clk 0:01:51.9]} 18. fxe4
{[%clk 0:02:17.1]} 18... Nxe4 {[%clk 0:01:51.5]} 19. Rxf7 {[%clk 0:02:16.2]}
19... Qxf7 {[%clk 0:01:42.2]} 20. Rxf7 {[%clk 0:02:14.8]} 20... Nxg3 {[%clk
0:01:31]} 21. Rxd7 {[%clk 0:00:46.8]} 21... Ne2+ {[%clk 0:01:11.6]} 22. Kh1
{[%clk 0:00:44.9]} 22... Nxc1 {[%clk 0:00:56.2]} 23. Qf1 {[%clk 0:00:44.2]}
23... Kh8 {[%clk 0:00:32.3]} 24. Qxc1 {[%clk 0:00:37.7]} 24... cxd4 {[%clk
0:00:30.1]} 25. Rxd4 {[%clk 0:00:34.6]} 25... Rac8 {[%clk 0:00:28.6]} 26. h3
{[%clk 0:00:33.1]} 26... b5 {[%clk 0:00:28.5]} 27. Rd7 {[%clk 0:00:30.7]} 27...
Rc6 {[%clk 0:00:27.4]} 28. Qe3 {[%clk 0:00:25.3]} 28... Rg8 {[%clk 0:00:22]} 29.
Rxa7 {[%clk 0:00:22.9]} 29... Rc4 {[%clk 0:00:16.5]} 30. Re7 {[%clk 0:00:22.1]}
30... h6 {[%clk 0:00:13.8]} 31. Re8 {[%clk 0:00:22.1]} 1-0

[Event "Early-Titled-Tuesday-Blitz-September-26-2023"]
[Site "Chess.com"]
[Date "2023.09.26"]
[Round "1"]
[White "Zurability"]
[Black "Flaccidmoves"]
[Result "1-0"]
[WhiteElo "2751"]
[BlackElo "2446"]
[TimeControl "180+1"]
[EndTime "8:06:51 PDT"]
[Termination "Zurability won by resignation"]

1. Nf3 {[%clk 0:02:58.9]} 1... g6 {[%clk 0:03:00.9]} 2. d4 {[%clk 0:02:57]} 2...
Bg7 {[%clk 0:03:01.3]} 3. e4 {[%clk 0:02:57.6]} 3... d6 {[%clk 0:03:01.4]} 4. c3
{[%clk 0:02:54.9]} 4... Nf6 {[%clk 0:03:01.3]} 5. Bd3 {[%clk 0:02:55.6]} 5...
O-O {[%clk 0:03:01.5]} 6. O-O {[%clk 0:02:56.3]} 6... e5 {[%clk 0:02:48.9]} 7.
Nbd2 {[%clk 0:02:55.2]} 7... Nc6 {[%clk 0:02:40.5]} 8. h3 {[%clk 0:02:54.5]}
8... Nd7 {[%clk 0:02:29.6]} 9. dxe5 {[%clk 0:02:42.8]} 9... Ndxe5 {[%clk
0:02:21.8]} 10. Bc2 {[%clk 0:02:39.8]} 10... Be6 {[%clk 0:02:03.5]} 11. Nd4
{[%clk 0:02:36.2]} 11... Bd7 {[%clk 0:01:52.1]} 12. f4 {[%clk 0:02:34.9]} 12...
Nxd4 {[%clk 0:01:51.7]} 13. cxd4 {[%clk 0:02:34.5]} 13... Nc6 {[%clk 0:01:52.2]}
14. Nf3 {[%clk 0:02:32.3]} 14... d5 {[%clk 0:01:38.6]} 15. e5 {[%clk 0:02:28.6]}
15... Ne7 {[%clk 0:01:33.4]} 16. Be3 {[%clk 0:02:05.3]} 16... Bf5 {[%clk
0:01:30.8]} 17. Bf2 {[%clk 0:02:02.6]} 17... c6 {[%clk 0:01:22.3]} 18. Bh4
{[%clk 0:01:54.5]} 18... Be4 {[%clk 0:01:01.5]} 19. Qe2 {[%clk 0:01:29.7]} 19...
Bxc2 {[%clk 0:00:37.3]} 20. Qxc2 {[%clk 0:01:29.3]} 20... Qd7 {[%clk 0:00:29.6]}
21. Bxe7 {[%clk 0:01:26.9]} 21... Qxe7 {[%clk 0:00:30.5]} 22. f5 {[%clk
0:01:26.6]} 22... gxf5 {[%clk 0:00:22.3]} 23. Qxf5 {[%clk 0:01:25.4]} 23... Qe6
{[%clk 0:00:22.7]} 24. Qf4 {[%clk 0:01:09]} 24... Bh6 {[%clk 0:00:21.3]} 25. Qh4
{[%clk 0:01:06.3]} 25... Kh8 {[%clk 0:00:19.6]} 26. Nh2 {[%clk 0:01:01.8]} 26...
Rg8 {[%clk 0:00:16.3]} 27. Rf6 {[%clk 0:00:57.5]} 27... Bg5 {[%clk 0:00:16.4]}
28. Rxe6 {[%clk 0:00:42.9]} 28... Bxh4 {[%clk 0:00:16.4]} 29. Rd6 {[%clk
0:00:43.7]} 29... Bg5 {[%clk 0:00:14.1]} 30. Nf3 {[%clk 0:00:42.7]} 30... Be3+
{[%clk 0:00:13.9]} 31. Kf1 {[%clk 0:00:39.3]} 31... Rg6 {[%clk 0:00:13.8]} 32.
Rd7 {[%clk 0:00:39]} 32... Rag8 {[%clk 0:00:12.7]} 33. g4 {[%clk 0:00:37]} 33...
f6 {[%clk 0:00:12.9]} 34. Re1 {[%clk 0:00:34]} 34... Bf4 {[%clk 0:00:11.4]} 35.
e6 {[%clk 0:00:32.8]} 35... f5 {[%clk 0:00:11.9]} 36. e7 {[%clk 0:00:26.8]}
36... fxg4 {[%clk 0:00:11.3]} 1-0

[Event "Early-Titled-Tuesday-Blitz-September-26-2023"]
[Site "Chess.com"]
[Date "2023.09.26"]
[Round "1"]
[White "remi04"]
[Black "TheoSlade"]
[Result "1-0"]
[WhiteElo "2823"]
[BlackElo "2477"]
[TimeControl "180+1"]
[EndTime "8:06:52 PDT"]
[Termination "remi04 won on time"]

1. b3 {[%clk 0:03:00.9]} 1... e5 {[%clk 0:03:00.1]} 2. Bb2 {[%clk 0:03:01.3]}
2... Nc6 {[%clk 0:03:00.8]} 3. g3 {[%clk 0:03:01.3]} 3... d5 {[%clk 0:03:00.4]}
4. Bg2 {[%clk 0:03:01.7]} 4... Nf6 {[%clk 0:03:00.4]} 5. d3 {[%clk 0:03:02.1]}
5... Be7 {[%clk 0:03:00]} 6. Nd2 {[%clk 0:03:02.2]} 6... O-O {[%clk 0:03:00.3]}
7. e4 {[%clk 0:03:01.3]} 7... Be6 {[%clk 0:02:53.2]} 8. Ne2 {[%clk 0:03:00.3]}
8... Qd7 {[%clk 0:02:48.7]} 9. O-O {[%clk 0:02:59.2]} 9... a5 {[%clk 0:02:40.6]}
10. a3 {[%clk 0:02:58.6]} 10... Rad8 {[%clk 0:02:28.4]} 11. Qe1 {[%clk
0:02:55.4]} 11... Rfe8 {[%clk 0:02:24.8]} 12. exd5 {[%clk 0:02:43.5]} 12... Bxd5
{[%clk 0:02:22.4]} 13. Nc4 {[%clk 0:02:36.1]} 13... Bxg2 {[%clk 0:02:19.1]} 14.
Kxg2 {[%clk 0:02:37]} 14... Qd5+ {[%clk 0:02:12.3]} 15. f3 {[%clk 0:02:33]}
15... Bc5 {[%clk 0:02:04.5]} 16. Nc3 {[%clk 0:02:32.3]} 16... Qd7 {[%clk
0:01:59]} 17. Ne4 {[%clk 0:02:29.1]} 17... Nxe4 {[%clk 0:01:58.3]} 18. fxe4
{[%clk 0:02:27.3]} 18... Bd4 {[%clk 0:01:48.9]} 19. Bxd4 {[%clk 0:02:25.1]}
19... Nxd4 {[%clk 0:01:47.4]} 20. Rf2 {[%clk 0:02:24.8]} 20... a4 {[%clk
0:01:44.2]} 21. b4 {[%clk 0:02:24.8]} 21... h5 {[%clk 0:01:37.1]} 22. Qd2 {[%clk
0:02:20.5]} 22... h4 {[%clk 0:01:34.4]} 23. Raf1 {[%clk 0:02:19.4]} 23... f6
{[%clk 0:01:30.8]} 24. Qd1 {[%clk 0:02:18.3]} 24... Qf7 {[%clk 0:00:58.7]} 25.
Qg4 {[%clk 0:02:14.7]} 25... hxg3 {[%clk 0:00:57.8]} 26. hxg3 {[%clk 0:02:15.1]}
26... Qe6 {[%clk 0:00:52.1]} 27. Qg6 {[%clk 0:02:12.7]} 27... Qf7 {[%clk
0:00:50.7]} 28. Qg4 {[%clk 0:02:04.5]} 28... Qe6 {[%clk 0:00:51.2]} 29. Qh4
{[%clk 0:02:05]} 29... Qf7 {[%clk 0:00:49]} 30. Ne3 {[%clk 0:01:57.8]} 30... Qg6
{[%clk 0:00:47.7]} 31. Nd5 {[%clk 0:01:02.7]} 31... Ne6 {[%clk 0:00:47]} 32.
Nxf6+ {[%clk 0:00:34.5]} 32... gxf6 {[%clk 0:00:46.7]} 33. Rxf6 {[%clk
0:00:35.4]} 33... Qh7 {[%clk 0:00:07.8]} 34. Qg4+ {[%clk 0:00:33.2]} 34... Ng7
{[%clk 0:00:04.9]} 35. Rh1 {[%clk 0:00:33.2]} 1-0

[Event "Early-Titled-Tuesday-Blitz-September-26-2023"]
[Site "Chess.com"]
[Date "2023.09.26"]
[Round "1"]
[White "AleksandrAleksikov"]
[Black "jeetjain"]
[Result "0-1"]
[WhiteElo "2215"]
[BlackElo "2583"]
[TimeControl "180+1"]
[EndTime "8:06:55 PDT"]
[Termination "jeetjain won on time"]

1. e4 {[%clk 0:02:57]} 1... e6 {[%clk 0:02:57.6]} 2. d4 {[%clk 0:02:55.1]} 2...
d5 {[%clk 0:02:58.2]} 3. Nc3 {[%clk 0:02:54.8]} 3... Bb4 {[%clk 0:02:54.8]} 4.
Ne2 {[%clk 0:02:53.3]} 4... Nf6 {[%clk 0:02:50.6]} 5. e5 {[%clk 0:02:51.3]} 5...
Nfd7 {[%clk 0:02:50.3]} 6. a3 {[%clk 0:02:49.6]} 6... Be7 {[%clk 0:02:45.2]} 7.
Be3 {[%clk 0:02:44.2]} 7... c5 {[%clk 0:02:44.3]} 8. Qd2 {[%clk 0:02:43.2]} 8...
Nc6 {[%clk 0:02:43.7]} 9. f4 {[%clk 0:02:41.9]} 9... cxd4 {[%clk 0:02:34.3]} 10.
Nxd4 {[%clk 0:02:40.4]} 10... Nxd4 {[%clk 0:02:27.5]} 11. Bxd4 {[%clk
0:02:39.3]} 11... Nb8 {[%clk 0:02:28.1]} 12. Be3 {[%clk 0:02:34.3]} 12... Nc6
{[%clk 0:02:28.4]} 13. Ne2 {[%clk 0:02:33.4]} 13... b5 {[%clk 0:02:19.6]} 14.
Nd4 {[%clk 0:02:31]} 14... Nxd4 {[%clk 0:02:17.7]} 15. Bxd4 {[%clk 0:02:24.1]}
15... Bd7 {[%clk 0:02:18.2]} 16. Bd3 {[%clk 0:02:18.8]} 16... a5 {[%clk
0:02:17.7]} 17. O-O {[%clk 0:02:16.7]} 17... g6 {[%clk 0:02:10.1]} 18. b4 {[%clk
0:02:02.9]} 18... O-O {[%clk 0:01:58.8]} 19. c3 {[%clk 0:01:58.8]} 19... Qc7
{[%clk 0:01:55.2]} 20. Qe3 {[%clk 0:01:18]} 20... Ra6 {[%clk 0:01:54.8]} 21.
Rae1 {[%clk 0:01:02.6]} 21... axb4 {[%clk 0:01:53.2]} 22. axb4 {[%clk
0:01:01.5]} 22... Ra2 {[%clk 0:01:52.1]} 23. Rf3 {[%clk 0:00:57.2]} 23... Rfa8
{[%clk 0:01:47.5]} 24. Rh3 {[%clk 0:00:55.4]} 24... R8a3 {[%clk 0:01:41.7]} 25.
f5 {[%clk 0:00:47.7]} 25... Bf8 {[%clk 0:01:27.7]} 26. fxg6 {[%clk 0:00:35.6]}
26... fxg6 {[%clk 0:01:27.7]} 27. Rf1 {[%clk 0:00:30.4]} 27... Ra1 {[%clk
0:01:24.4]} 28. Bb1 {[%clk 0:00:27.7]} 28... Bg7 {[%clk 0:01:20.4]} 29. Qf4
{[%clk 0:00:16]} 29... Be8 {[%clk 0:01:20]} 30. Qg4 {[%clk 0:00:15.2]} 30... Bf7
{[%clk 0:01:12.7]} 31. Qh4 {[%clk 0:00:13.8]} 31... h6 {[%clk 0:01:04.5]} 32.
Qf4 {[%clk 0:00:09.8]} 32... Rb3 {[%clk 0:00:59.9]} 33. Bd3 {[%clk 0:00:06.5]}
33... Rxf1+ {[%clk 0:00:59.8]} 34. Bxf1 {[%clk 0:00:05.9]} 34... Rb1 {[%clk
0:00:56.5]} 35. Rf3 {[%clk 0:00:05.3]} 35... g5 {[%clk 0:00:50.5]} 36. Qd2
{[%clk 0:00:03.3]} 36... Bg6 {[%clk 0:00:47.8]} 37. h4 {[%clk 0:00:01.3]} 37...
g4 {[%clk 0:00:43.9]} 38. Rf2 {[%clk 0:00:01.3]} 38... Bxe5 {[%clk 0:00:43]} 0-1

[Event "Early-Titled-Tuesday-Blitz-September-26-2023"]
[Site "Chess.com"]
[Date "2023.09.26"]
[Round "1"]
[White "brm72"]
[Black "stratacticos"]
[Result "1-0"]
[WhiteElo "2530"]
[BlackElo "1782"]
[TimeControl "180+1"]
[EndTime "8:06:57 PDT"]
[Termination "brm72 won on time"]

1. e4 {[%clk 0:03:00.9]} 1... c5 {[%clk 0:02:17.6]} 2. Nf3 {[%clk 0:02:59.6]}
2... Nc6 {[%clk 0:02:13.2]} 3. Bb5 {[%clk 0:02:59.1]} 3... Na5 {[%clk 0:02:12]}
4. O-O {[%clk 0:02:57.9]} 4... a6 {[%clk 0:02:11.5]} 5. Be2 {[%clk 0:02:57.6]}
5... b5 {[%clk 0:02:11.2]} 6. c3 {[%clk 0:02:55.8]} 6... Bb7 {[%clk 0:02:09.2]}
7. e5 {[%clk 0:02:49.3]} 7... g6 {[%clk 0:01:55.2]} 8. d4 {[%clk 0:02:48.1]}
8... cxd4 {[%clk 0:01:54]} 9. cxd4 {[%clk 0:02:49]} 9... Bg7 {[%clk 0:01:52.2]}
10. Bd2 {[%clk 0:02:33.8]} 10... Nc4 {[%clk 0:01:51.3]} 11. Bxc4 {[%clk
0:02:30.6]} 11... bxc4 {[%clk 0:01:50.8]} 12. Nc3 {[%clk 0:02:31.2]} 12... Nh6
{[%clk 0:01:43.7]} 13. Re1 {[%clk 0:02:18.6]} 13... O-O {[%clk 0:01:42.6]} 14.
Ng5 {[%clk 0:02:01.6]} 14... Nf5 {[%clk 0:01:37.5]} 15. Be3 {[%clk 0:01:56.7]}
15... Nxe3 {[%clk 0:01:35.9]} 16. fxe3 {[%clk 0:01:50.5]} 16... f6 {[%clk
0:01:28.7]} 17. exf6 {[%clk 0:01:47.1]} 17... Rxf6 {[%clk 0:01:28.3]} 18. Nge4
{[%clk 0:01:43.8]} 18... Bxe4 {[%clk 0:01:17.8]} 19. Nxe4 {[%clk 0:01:44.7]}
19... Rb6 {[%clk 0:01:16.6]} 20. Qe2 {[%clk 0:01:42.4]} 20... Kh8 {[%clk
0:01:08.3]} 21. Nc5 {[%clk 0:01:34.3]} 21... d5 {[%clk 0:00:47]} 22. b3 {[%clk
0:01:27.3]} 22... cxb3 {[%clk 0:00:41.9]} 23. axb3 {[%clk 0:01:28.2]} 23... a5
{[%clk 0:00:41.8]} 24. Rf1 {[%clk 0:01:24]} 24... Qd6 {[%clk 0:00:37.5]} 25. Qd2
{[%clk 0:00:59.1]} 25... e5 {[%clk 0:00:35.4]} 26. Rf7 {[%clk 0:00:42.3]} 26...
Kg8 {[%clk 0:00:29.9]} 27. Raf1 {[%clk 0:00:41.1]} 27... Rb4 {[%clk 0:00:20.2]}
28. Rd7 {[%clk 0:00:32.2]} 28... Qb6 {[%clk 0:00:10.1]} 29. Rff7 {[%clk
0:00:31]} 29... Bh6 {[%clk 0:00:09.7]} 30. Qf2 {[%clk 0:00:25.8]} 1-0